Cogmind - Beta 17.1 @@@ ROGUE MODE // 2026.09.05 @ 19:45:53 Player: SnailSD Result: Destroyed by G-47 Trooper with Particle Gun Performance ------------- Evolutions (0) 0 Regions Visited (1) 200 Robots Destroyed (25) 125 Value Destroyed (559) 559 Prototype IDs (2) 40 Alien Tech Used (0) 0 Bonus (0) 0 TOTAL SCORE: 924 Bonus ------- None Cogmind --------- Core Integrity 0/250 Matter 287/300 Energy 250/250 System Corruption 2% Temperature Cool (40) Movement Core (500) Ox9 Location -10/Materials Parts ------- > --- POWER (1) -------- Ion Engine > --- PROPULSION (2) --- (None) > --- UTILITY (2) ------ Large Storage Unit Sensor Array > --- WEAPON (2) ------- Small Laser Light Assault Rifle > --- INVENTORY (15) --- Heat Sink Improved Heat Sink Small Storage Unit Medium Matter Pod (100) Sensor Array Sensor Array Signal Interpreter Signal Interpreter Improved Terrain Scanner Tractor Beam Mining Laser Peak State ------------ > --- POWER ------------ Ion Engine > --- PROPULSION ------- Light Treads Light Treads > --- UTILITY ---------- Small Storage Unit Improved Terrain Scanner > --- WEAPON ----------- Assault Rifle Light Assault Rifle > --- INVENTORY -------- Light Ion Engine Wheel Compact Wheel EM Pulse Gun [Rating: 9] Favorites ----------- Power Ion Engine Engine Ion Engine Propulsion Light Treads Treads Light Treads Utility Large Storage Unit Device Sensor Array Storage Large Storage Unit Weapon Light Assault Rifle Energy Gun Small Laser Ballistic Gun Light Assault Rifle Build | -11 -10 ------- Run | Yrd Mat Slots Evolved . | . . Power . | . . Propulsion . | . . Utility . | . . Weapon . | . . Parts Attached 16 | 8 8 Power 3 | 1 2 Engine 3 | 1 2 Core . | . . Reactor . | . . Propulsion 3 | 2 1 Treads 3 | 2 1 Leg . | . . Wheel . | . . Hover . | . . Flight . | . . Utility 6 | 3 3 Device 4 | 2 2 Storage 2 | 1 1 Processor . | . . Hackware . | . . Protection . | . . Artifact . | . . Weapon 4 | 2 2 Energy Gun 2 | . 2 Energy Cannon . | . . Ballistic Gun 2 | 2 . Ballistic Cannon . | . . Launcher . | . . Special Weapon . | . . Impact Weapon . | . . Slashing Weapon . | . . Piercing Weapon . | . . Special Melee Weapon . | . . Unidentified Prototypes . | . . Parts Lost 8 | . 8 Power 2 | . 2 Propulsion 3 | . 3 Utility 1 | . 1 Weapon 2 | . 2 Highest Loss Streak 5 | . 5 To Critical Strikes . | . . Average Backups 10 | 4 11 Power . | . . Propulsion 1 | 1 . Utility 6 | . 8 Weapon 1 | 1 2 Tool/Special . | . . Unused Backups 11 | . 11 Power . | . . Propulsion 2 | . 2 Utility 8 | . 8 Weapon 1 | . 1 Tool/Special . | . . Average Slot Usage (%) 93 | . 93 Engine 13 | . 13 Treads 23 | . 23 Device 13 | . 13 Storage 14 | . 14 Energy Gun 4 | . 4 Ballistic Gun 23 | . 23 Peak Build Rating 9 | 9 8 Average Rating 7 | 6 7 On Entrance 3 | . 7 Avg Prop Armor Cover (%) . | . . Naked Turns . | . . Heaviest Build 29 | 14 29 Greatest Support 40 | 40 40 Greatest Overweight (x) 9 | . 9 Average Overweight (x) . | . . Largest Inventory Capacity 15 | 8 15 Average Capacity 12 | 7 13 Most Carried 15 | 6 15 Average Carried 10 | 4 11 Final Capacity 15 | 8 15 Final Carried 11 | 6 11 Class Distribution -------------------- 100% | Mutant Dominant Class ---------------- Mutant | -10/Materials Resources | -11 -10 ----------- Run | Yrd Mat Matter Collected 646 | 304 342 Remotely . | . . Salvage Created 804 | 85 719 Parts 60 | 9 51 Haulers Intercepted 1 | . 1 Recyclers Shooed 1 | . 1 Parts Field Recycled . | . . Retrieved Matter . | . . Parts Self-Destructed . | . . Prevented . | . . Parts Restored . | . . Kills | -11 -10 ------- Run | Yrd Mat Combat Hostiles Destroyed 14 | . 14 Guns 14 | . 14 Classes Destroyed 7 | 2 5 Worker 4 | 2 2 Builder 3 | . 3 Tunneler 2 | 2 . Hauler 1 | . 1 Watcher 1 | . 1 Swarmer 1 | . 1 Grunt 13 | . 13 Best Kill Streak 4 | 1 4 Combat Bots Only 4 | . 4 Max Kills in Single Turn 2 | 1 2 Gunslinging . | . . Exploded . | . . Melee . | . . Uniques/NPCs Destroyed . | . . Combat | -11 -10 -------- Run | Yrd Mat Hostile Shots Fired 112 | . 112 Missed 29 | . 29 Hits 83 | . 83 Projectile 83 | . 83 Critical Strikes 1 | . 1 Damage Taken 1210 | . 1210 Core 261 | . 261 Absorbed by Shields . | . . Core Remaining (%) 100 | 100 . Volleys Fired 77 | 6 71 Largest 2 | 2 2 Hottest 60 | 40 60 Shots Fired 152 | 12 140 Gun 152 | 12 140 Cannon . | . . Launcher . | . . Special . | . . Kinetic 124 | 12 112 Thermal 13 | . 13 Explosive . | . . Electromagnetic 15 | . 15 Robot Hit Streak 16 | 3 16 Robot Miss Streak 3 | 1 3 Penetration Max . | . . Secondary Targets 2 | . 2 Max Gunslinging Chain 1 | . 1 Shots Hit Robots 103 | 6 97 Core Hits 48 | 5 43 Critical Kills . | . . Critical Parts Destroyed . | . . Critical Strikes . | . . Melee Attacks . | . . Impact . | . . Slashing . | . . Piercing . | . . Sneak Attacks . | . . Combat Hostiles . | . . Follow-up Attacks . | . . Damage Inflicted 1266 | 64 1202 Guns 1081 | 64 1017 Cannons . | . . Explosions 181 | . 181 Melee . | . . Ramming 4 | . 4 Kinetic 842 | 64 778 Thermal 63 | . 63 Explosive 181 | . 181 Electromagnetic 176 | . 176 Impact . | . . Slashing . | . . Piercing . | . . Highest Corruption 2 | . 2 Average Corruption 2 | . 2 Corruption Purged . | . . Corruption Blocked . | . . Effects 4 | . 4 Message Errors 1 | . 1 Matter Fused 2 | . 2 Data Loss (minor) 1 | . 1 Overload Shots . | . . Overflow Damage 15 | . 15 Projectiles . | . . Explosions 15 | . 15 Melee . | . . Knockbacks . | . . Impact . | . . Kinetic . | . . Secondary . | . . Self-Inflicted Damage 222 | . 222 Shots 2 | . 2 Rammed 2 | . 2 Targets Rammed 2 | . 2 Kicked . | . . Crushed . | . . Highest Temperature 124 | . 124 Average Temperature 28 | . 28 Received Heat Transfer 477 | . 477 Siege Activations . | . . Martial Activations . | . . Shielding Activations . | . . Robots Disrupted . | . . Combat Hostiles . | . . Robots Corrupted . | . . Combat Hostiles . | . . Parts Fried 1 | . 1 Impact Corruptions . | . . Robots Melted . | . . Combat Hostiles . | . . Parts Melted . | . . Heat Transferred 150 | . 150 Parts Sabotaged . | . . Parts Stolen . | . . Parts Stripped . | . . Power Chain Reactions . | . . Alert | -11 -10 ------- Run | Yrd Mat Maximum Alert Level . | . . Low Security (%) 100 | 100 100 Level 1 . | . . Level 2 . | . . Level 3 . | . . Level 4 . | . . Level 5 . | . . High Security . | . . Max Security . | . . Peak Influence 192 | 5 192 Initial . | . . Average 55 | 1 71 Influence Increases 466 | 20 446 Destroy 0b10 Robot/C 280 | . 280 Destroy 0b10 Robot/NC 55 | 20 35 Destroy Leader 54 | . 54 Successful Hack 5 | . 5 Disable Machine 45 | . 45 Destroy Structure 27 | . 27 Influence Decreases 311 | 20 291 Time Decay 231 | 20 211 Lost Part 80 | . 80 Squads Dispatched 4 | . 4 Investigation 2 | . 2 Extermination . | . . Reinforcement 2 | . 2 Assault . | . . Garrison . | . . Intercept . | . . Searches Triggered . | . . Construction Impeded . | . . Haulers Reinforced . | . . Active Scanning Responses . | . . Cargo Convoy Interrupts . | . . Stealth | -11 -10 --------- Run | Yrd Mat Distress Signals 4 | . 4 Communications Jammed . | . . Distress Signals . | . . Times Spotted 23 | . 23 Peak Tracking Total 6 | . 6 Tactical Retreats . | . . Traps | -11 -10 ------- Run | Yrd Mat Traps Triggered 1 | . 1 Indirectly . | . . Trap Hack Attempts . | . . Triggered . | . . Disarmed . | . . Reprogrammed . | . . Reused . | . . Traps Extracted . | . . Installed . | . . Triggered . | . . Machines | -11 -10 ---------- Run | Yrd Mat Machines Disabled 3 | . 3 Max in Single Turn 3 | . 3 Machines Repaired . | . . Machines Dismantled . | . . Machines Sabotaged . | . . Overloaded Fab Kills . | . . Hacking | -11 -10 --------- Run | Yrd Mat Machines Accessed 4 | . 4 Terminals 4 | . 4 Fabricators . | . . Repair Stations . | . . Recycling Units . | . . Scanalyzers . | . . Garrison Access . | . . Total Hacks 12 | . 12 Successful 5 | . 5 Failed 7 | . 7 Catastrophic 1 | . 1 Database Lockouts . | . . Manual 6 | . 6 Terminals 12 | . 12 Fabricators . | . . Repair Stations . | . . Recycling Units . | . . Scanalyzers . | . . Garrison Access . | . . Terminal Hacks 4 | . 4 Prototype ID Bank 1 | . 1 Terminal Index 1 | . 1 Recall Reinforcements 1 | . 1 Hauler Manifests 1 | . 1 Fabricator Hacks . | . . Repair Station Hacks . | . . Recycling Unit Hacks . | . . Scanalyzer . | . . Garrison Access Hacks . | . . Unauthorized Hacks 1 | . 1 Terminals 1 | . 1 Operators 1 | . 1 Fabricators . | . . Repair Stations . | . . Recycling Units . | . . Scanalyzers . | . . Garrison Access . | . . Data Cores Recovered . | . . Used . | . . Hacking Detections 4 | . 4 Full Trace Events 2 | . 2 Feedback Events . | . . Feedback Blocked . | . . Robot Schematics Acquired . | . . Robots Built . | . . Authchips . | . . Time . | . . Total Robot Build Rating . | . . Part Schematics Acquired . | . . Parts Built . | . . Authchips . | . . Time . | . . Total Part Build Rating . | . . Part Studies Acquired . | . . Parts Repaired . | . . Time . | . . Parts Recycled . | . . Recycled Matter . | . . Retrieved Matter . | . . Retrieved Components . | . . Parts Scanalyzed . | . . Part Schematics Acquired . | . . Parts Damaged . | . . Bothacking | -11 -10 ------------ Run | Yrd Mat Used RIF Installer . | . . Robots Hacked . | . . Non-combat . | . . Combat . | . . Robot Hacks Applied . | . . Relay Couplers Released . | . . Fabnet Peak Effective % . | . . Robots Rewired . | . . Allies Hacked . | . . Hacks Repelled . | . . Allies | -11 -10 -------- Run | Yrd Mat Total Allies . | . . Largest Group . | . . Highest-Rated Group . | . . Highest-Rated Ally . | . . Total Orders . | . . Ally Attacks . | . . Total Damage . | . . Kills . | . . Allies Corrupted . | . . Allies Melted . | . . Intel | -11 -10 ------- Run | Yrd Mat Active Infowar (turns) 858 | 145 713 Sensors 608 | . 608 Terrain 76 | 76 . Seismic 174 | 69 105 Robot Analysis Total . | . . Derelict Logs Recovered . | . . Drone Launches . | . . Drone Recoveries . | . . Exploration | -11 -10 ------------- Run | Yrd Mat Turns Passed 953 | 212 741 Spaces Moved 379 | 115 264 Core 22 | 5 17 Treads 357 | 110 247 Legs . | . . Wheels . | . . Hover . | . . Flight . | . . Fastest Speed 50 | 50 160 Average Speed 174 | 155 182 Slowest Speed 500 | 160 500 Overloaded Moves . | . . Propulsion Burnouts . | . . Robots Hopped . | . . Potential Cave-ins . | . . Cave-ins Triggered . | . . Exploration Rate (%) 25 | 6 44 Regions Visited 1 Branch Regions . Pre-discovered Areas . | . . Known Exits Taken . | . . Unknown Exits Taken 1 | 1 . Scrap Searched . | . . Spaces Dug . | . . Terrain Destroyed 28 | . 28 Melee . | . . Projectile . | . . AOE 28 | . 28 Terrain Rammed . | . . Walls Destroyed . | . . Machines Disabled . | . . Actions | -11 -10 --------- Run | Yrd Mat Total 531 | 134 397 Wait 36 | . 36 Move 378 | 114 264 Hop . | . . Pick Up 17 | 5 12 Fast Attach 10 | 8 2 Attach 5 | . 5 Detach 1 | 1 . Swap 1 | . 1 Drop 4 | . 4 Fire 77 | 6 71 Melee . | . . Ram . | . . Kick . | . . Crush 2 | . 2 Escape Stasis . | . . Rewire . | . . Trap . | . . Miscellaneous . | . . Route ------- -11/Scrapyard -10/Materials (discovered 1 exit: [*Mat]) History --------- Turn | Location | Event 6 | -11/Scrapyard | Discovered new exit (range 15) 213 | -11/Scrapyard | Entered Materials 353 | -10/Materials | Build established: Mutant 410 | -10/Materials | Discovered new exit (range 8) 687 | -10/Materials | Core integrity fell below 50% 758 | -10/Materials | Lost 5 parts (2p1n1u1w) 775 | -10/Materials | Core integrity fell below 20% 954 | -10/Materials | Destroyed by G-47 Trooper with Particle Gun Last Messages --------------- 00801_ G-34 Mercenary destroyed. 00804_ Acquired 14 matter. 00804_ K-01 Serf cleans the Terminal. 00811_ Acquired 1 matter. 00812_ K-01 Serf collects debris. 00813_ System corrupted: Component data lost. 00815_ K-01 Serf collects debris. 00822_ W-16 Scout sends out distress signal. 00830_ Lgt. Treads destroyed. 00842_ K-01 Serf collects debris. 00864_ S-10 Pest destroyed. 00868_ Acquired 3 matter. 00891_ YBI9PW<%O8IKHF:TBNZ:Q6 00892_ W-16 Scout destroyed. 00894_ Acquired 1 matter. 00917_ System corrupted: Matter fused (-9). 00919_ R-06 Scavenger collects Corrupted Aluminum Leg. 00927_ K-01 Serf cleans the Terminal. 00950_ G-34 Mercenary destroyed. Map ----- +----------------------------------------------------+ | | | ?????????????????????????????????????????????????? | | ?????????????????????????????????????????????????? | | ?????????????????????????????????????????????????? | | ?????????????????????????????????????????????????? | | ?????????????????????????????????????????????????? | | ?????????????????????????????????????????????????? | | ?????????????????????????????????????????????????? | | ?????????????????????????????????????????????????? | | ?????????????????????????????????????????????????? | | ?????????????????????????????????????????????????? | | ?????????????????????????????????????????????????? | | ?????????????????????????????????????????????????? | | ?????????????????????????????#######?????????????? | | ?????????????????????????##### #?????????????? | | ?????????????????????????? #?????????????? | | ??????????????????????????? #?????????????? | | ??????????????????? ? ?????? ??????????????? | | ??????????????????? ?####### ??????????????? | | ??????????????????# ?# #?# #######????????? | | ??????????????????# ## #?# ?# #????????? | | ??????????????????# ## #?# =#%[ #????????? | | ??????????????????# ## #?# !%/=] #????????? | | ??????????????????# ## #?# =# #????????? | | ??????????????????# ## #?# #######????????? | | ??????????????????# ## @! ### ##?????????????? | | ???????? ########## ####g### #?????????????? | | ???????? % #?????????????? | | ???????? ? ! T #?????????????? | | ??????????? """ #?????????????? | | ?????????????### "T"% #### #?????????????? | | ???????????????# ############???????????? | | ???????????????# ^ % #=""" o !#???????????? | | ???????????????# %%+%"T" """ #######?????? | | ???????????????# ? % #[[* """ # ####### | | ???????????????# =[#!! """ # | | ???????????????# # # | | ???????????????########## # [| * # | | ????????????????????????# # =| # ###+### | | ????????????????????????# ############# ## ? | | ??????????????????????###+#######?????# ## """ | | ??????????????????????# % #?????# ## """ | | ??????????????????????# """"" #?????# ## """ | | ?????????????????????## ""T""* ##????# ## | | ?????????????????????##= ##????# ## | | ????????????????????###|o = ###???# ######## | | ????????????????????# #???# #??????? | | ????????????????????## ##???# #??????? | | ?????????????????????# #???# #??????? | | ??????????????????#### ### ####?# #??????? | +----------------------------------------------------+ Best States ------------- Heat Dissipation 25 Energy Generation 10 Energy Capacity 250 Matter Stores 300 Matter Capacity 300 Sight Range 16 Robot Scan Range 14 Terrain Scan Range 16 Terrain Scan Density 10 Evasion (%) 40 Recoil Reduction 2 Item Schematics ----------------- None Robot Schematics ------------------ None Fabricated ------------ Nothing Repaired ---------- Nothing Studied --------- None Alien Tech Used ----------------- None Achievements -------------- None Challenges ------------ None Game ------ Seed DerelictBoreWyrmplate Manual? 0 Play Time 00:13:52 Cumulative 74.7 hours Start 2026.09.03 @ 21:37:38 End 2026.09.05 @ 19:45:53 Sessions 4 Manual Loads 0 Difficulty Rogue Special Mode None Game No. 127 Rogue 127 Adventurer 0 Explorer 0 Win Type - Total 1 Types 1/0/0/0/0/0/0/0/0/0 Lore% 43 Gallery% 41 Achievement% 31 Wizard Run 0 Options --------- Layout 1 ASCII 1 Keyboard 1 Movement Numpad Keybinds 0 Fullscreen 2 Font 24/Smallcaps Map View 50x35 Zoom Use 0% Tactical HUD 1 Map Filters NONE Filters NONE Steam 1 RUN: 3eb4f299-59f6-4fb3-8eab-e917761c0c3b